bitfinex/quotes_BTCUSD_20240821
["timestamp","ask_amount","ask_price","bid_price","bid_amount"]
[1724208849552,0.235,59593.0,59592.0,0.009042]
[1724208849774,0.27540843,59593.0,59592.0,0.009042]
[1724208849971,0.37540843,59593.0,59592.0,0.009042]
[1724208850240,0.49250843,59593.0,59592.0,0.009042]
[1724208851235,0.57080843,59593.0,59592.0,0.009042]
[1724208851489,0.62788927,59593.0,59592.0,0.009042]
[1724208853171,0.69418927,59593.0,59592.0,0.009042]
[1724208853759,0.005,59592.0,59591.0,0.009042]
[1724208853979,0.14687345,59592.0,59591.0,0.009042]
[1724208854204,0.22743951,59592.0,59591.0,0.009042]
[1724208854429,0.22743951,59592.0,59586.0,0.0814]
[1724208854430,0.204,59586.0,59582.0,0.14]
[1724208854647,0.204,59586.0,59579.0,0.009031]
[1724208854648,0.34687345,59586.0,59579.0,0.149031]
[1724208855995,0.35187345,59586.0,59579.0,0.149031]
[1724208856225,0.4100308,59586.0,59579.0,0.149031]
[1724208856453,0.3201,59580.0,59579.0,0.009031]
[1724208856680,0.46397345,59580.0,59579.0,0.009031]
[1724208857370,0.52407345,59580.0,59579.0,0.009031]
[1724208857595,0.6620808,59580.0,59579.0,0.009031]
[1724208858282,0.5193808,59580.0,59579.0,0.009031]
[1724208858513,0.5223808,59580.0,59579.0,0.009031]
[1724208859186,0.5263808,59580.0,59579.0,0.009031]
[1724208859416,0.47097345,59580.0,59579.0,0.009031]
[1724208860090,0.48124817,59580.0,59579.0,0.009031]
[1724208862193,0.62794817,59580.0,59579.0,0.009031]
[1724208862892,0.62794817,59580.0,59579.0,0.154131]
[1724208862893,0.48124817,59580.0,59579.0,0.154131]
[1724208863113,0.54557797,59580.0,59579.0,0.154131]
[1724208867299,0.54357797,59580.0,59579.0,0.154131]
[1724208867966,0.005,59579.0,59573.0,0.1365]
[1724208868186,0.21912125,59579.0,59573.0,0.1365]
[1724208869320,0.22212125,59579.0,59573.0,0.1365]
[1724208870023,0.22212125,59579.0,59578.0,0.1374031]
[1724208870024,0.26297345,59579.0,59578.0,0.1374031]
[1724208870251,0.26150843,59579.0,59578.0,0.1374031]
[1724208870473,0.26350843,59579.0,59578.0,0.1374031]
[1724208870703,0.26550843,59579.0,59578.0,0.1374031]
[1724208870954,0.26750843,59579.0,59578.0,0.1374031]
[1724208872079,0.31828675,59579.0,59578.0,0.1374031]
[1724208878360,0.31428675,59579.0,59578.0,0.1374031]
[1724208879042,0.31628675,59579.0,59578.0,0.1374031]
[1724208879257,0.31828675,59579.0,59578.0,0.1374031]
[1724208880446,0.31428675,59579.0,59578.0,0.1374031]
[1724208881156,0.31328675,59579.0,59578.0,0.1374031]
[1724208883853,0.31410875,59579.0,59578.0,0.1374031]
[1724208895954,0.31857377,59579.0,59578.0,0.0009031]
[1724208896176,0.32057377,59579.0,59578.0,0.0009031]
[1724208901009,0.32057377,59579.0,59570.0,0.0755]
[1724208901010,0.203,59571.0,59570.0,0.0755]
[1724208901244,0.003,59570.0,59569.0,0.009031]
[1724208901464,0.14487345,59570.0,59569.0,0.009031]
[1724208901701,0.14187345,59570.0,59569.0,0.009031]
[1724208901917,0.14040843,59570.0,59569.0,0.092131]
[1724208902354,0.14040843,59570.0,59569.0,0.158731]
[1724208903492,0.14140843,59570.0,59569.0,0.158731]
[1724208904713,0.14240843,59570.0,59569.0,0.158731]
[1724208904917,0.19238438,59570.0,59569.0,0.158731]
[1724208907753,0.14240843,59570.0,59569.0,0.158731]
[1724208908619,0.14687345,59570.0,59569.0,0.158731]
[1724208909488,0.14667144,59570.0,59569.0,0.158731]
[1724208909713,0.14667144,59570.0,59569.0,0.009031]
[1724208910154,0.14567144,59570.0,59569.0,0.009031]
[1724208910381,0.20743353,59570.0,59569.0,0.009031]
[1724208910664,0.20443353,59570.0,59569.0,0.009031]
[1724208911108,0.21043353,59570.0,59569.0,0.009031]
[1724208912236,0.20743353,59570.0,59569.0,0.009031]
[1724208912686,0.21343353,59570.0,59569.0,0.009031]
[1724208913130,0.21043353,59570.0,59569.0,0.009031]
[1724208913798,0.21143353,59570.0,59569.0,0.009031]
[1724208914238,0.21343353,59570.0,59569.0,0.009031]
[1724208916288,0.21043353,59570.0,59569.0,0.009031]
[1724208916505,0.20896851,59570.0,59569.0,0.086131]
[1724208916722,0.20896851,59570.0,59569.0,0.149631]
[1724208919250,0.20996851,59570.0,59569.0,0.149631]
[1724208919710,0.20896851,59570.0,59569.0,0.149631]
[1724208920389,0.20996851,59570.0,59569.0,0.149631]
[1724208920608,0.20896851,59570.0,59569.0,0.149631]
[1724208921281,0.20996851,59570.0,59569.0,0.149631]
[1724208921498,0.21196851,59570.0,59569.0,0.149631]
[1724208921759,0.20896851,59570.0,59569.0,0.149631]
[1724208922506,0.32606851,59570.0,59569.0,0.149631]
[1724208923643,0.32906851,59570.0,59569.0,0.149631]
[1724208924703,0.32906851,59570.0,59569.0,0.009031]
[1724208925794,0.32606851,59570.0,59569.0,0.009031]
[1724208926020,0.32753353,59570.0,59569.0,0.009031]
[1724208926246,0.20896851,59570.0,59569.0,0.009031]
[1724208926466,0.32606851,59570.0,59569.0,0.009031]
[1724208927793,0.32706851,59570.0,59569.0,0.009031]
[1724208928001,0.32906851,59570.0,59569.0,0.009031]
[1724208930707,0.32606851,59570.0,59569.0,0.009031]
[1724208931626,0.32689151,59570.0,59569.0,0.009031]
[1724208931858,0.32789151,59570.0,59569.0,0.009031]
[1724208932290,0.32989151,59570.0,59569.0,0.009031]
[1724208932497,0.32689151,59570.0,59569.0,0.009031]
[1724208933129,0.32789151,59570.0,59569.0,0.009031]
[1724208934288,0.32989151,59570.0,59569.0,0.009031]
[1724208935192,0.33189151,59570.0,59569.0,0.009031]
[1724208936834,0.31989151,59570.0,59569.0,0.009031]
[1724208937066,0.32135653,59570.0,59569.0,0.009031]
[1724208937286,0.33135653,59570.0,59569.0,0.009031]
[1724208937761,0.32135653,59570.0,59569.0,0.009031]
[1724208937981,0.33135653,59570.0,59569.0,0.009031]
[1724208938209,0.34135653,59570.0,59569.0,0.009031]
[1724208938432,0.34135653,59570.0,59569.0,0.004479]
[1724208942510,0.34135653,59570.0,59569.0,0.085079]
[1724208942511,0.33635653,59570.0,59569.0,0.085079]
[1724208942751,0.27812942,59570.0,59569.0,0.146379]
[1724208943177,0.16102942,59570.0,59569.0,0.146379]
[1724208943417,0.27812942,59570.0,59569.0,0.146379]
[1724208944572,0.25812942,59570.0,59569.0,0.146379]
[1724208944808,0.31473232,59570.0,59569.0,0.004479]
[1724208945057,0.31673232,59570.0,59569.0,0.004479]
[1724208945287,0.31873232,59570.0,59569.0,0.004479]
[1724208946460,0.31473232,59570.0,59569.0,0.004479]
[1724208946689,0.31273232,59570.0,59569.0,0.004479]
[1724208946825,0.31473232,59570.0,59569.0,0.004479]
[1724208947050,0.31873232,59570.0,59569.0,0.004479]
[1724208947261,0.32073232,59570.0,59569.0,0.004479]
[1724208948085,0.31873232,59570.0,59569.0,0.004479]
[1724208948655,0.32273232,59570.0,59569.0,0.004479]
[1724208955678,0.203,59561.0,59560.0,0.0825]
[1724208955939,0.4201,59561.0,59560.0,0.0825]
[1724208956195,0.46050843,59561.0,59560.0,0.0825]
[1724208956831,0.46250843,59561.0,59560.0,0.0835]
[1724208957042,0.51719927,59561.0,59560.0,0.0835]
[1724208957295,0.45950843,59561.0,59560.0,0.1475]
[1724208957719,0.45850843,59561.0,59560.0,0.1465]
[1724208957943,0.50735927,59561.0,59560.0,0.1465]
[1724208958160,0.50635927,59561.0,59560.0,0.1475]
[1724208959035,0.50835927,59561.0,59560.0,0.1475]
[1724208959459,0.50835927,59561.0,59560.0,0.1465]
[1724208959900,0.51035927,59561.0,59560.0,0.1465]
[1724208960555,0.52072378,59561.0,59560.0,0.1465]
[1724208962385,0.52172378,59561.0,59560.0,0.1465]
[1724208962577,0.52372378,59561.0,59560.0,0.0825]
[1724208963330,0.003,59559.0,59558.0,0.0636]
[1724208963589,0.00446502,59559.0,59558.0,0.0636]
[1724208963814,0.04487345,59559.0,59558.0,0.0636]
[1724208964271,0.04187345,59559.0,59558.0,0.0636]
[1724208964494,0.04287345,59559.0,59558.0,0.0636]
[1724208964708,0.09556448,59559.0,59558.0,0.0636]
[1724208965252,0.09756448,59559.0,59558.0,0.0636]
[1724208965481,0.003,59558.0,59557.0,0.0772]
[1724208965704,0.15750843,59558.0,59557.0,0.0772]
[1724208965932,0.14040843,59558.0,59557.0,0.1419]
[1724208966157,0.25750843,59558.0,59557.0,0.1419]
[1724208966623,0.25750843,59558.0,59557.0,0.1429]
[1724208967525,0.25750843,59558.0,59557.0,0.1419]
[1724208968197,0.25850843,59558.0,59557.0,0.1419]
[1724208968648,0.30535322,59558.0,59557.0,0.1419]
[1724208969601,0.30635322,59558.0,59557.0,0.1419]
[1724208974340,0.25930638,59558.0,59557.0,0.1419]
[1724208978281,0.26030638,59558.0,59557.0,0.13292708]
[1724208978493,0.003,59557.0,59555.0,0.070142]
[1724208978720,0.02637714,59556.0,59555.0,0.070142]
[1724208978960,0.06658352,59556.0,59555.0,0.070142]
[1724208979171,0.06758352,59556.0,59555.0,0.070142]
[1724208979380,0.06658352,59556.0,59555.0,0.070142]
[1724208980271,0.06658352,59556.0,59555.0,0.009042]
[1724208980476,0.06658352,59556.0,59555.0,0.010042]
[1724208980902,0.06658352,59556.0,59555.0,0.009042]
[1724208981116,0.04020638,59556.0,59555.0,0.009042]
[1724208981322,0.04020638,59556.0,59555.0,0.090942]
[1724208981969,0.04220638,59556.0,59555.0,0.090942]
[1724208982396,0.04320638,59556.0,59555.0,0.090942]
[1724208982825,0.04220638,59556.0,59555.0,0.090942]
[1724208983053,0.16130638,59556.0,59555.0,0.090942]
[1724208983261,0.26130638,59556.0,59555.0,0.090942]
[1724208984440,0.28743702,59556.0,59555.0,0.090942]
[1724208985788,0.29758573,59556.0,59555.0,0.090942]
[1724208991038,0.27145509,59556.0,59555.0,0.090942]
[1724208993872,0.27145509,59556.0,59555.0,0.009042]
[1724208994574,0.27245509,59556.0,59555.0,0.009042]
[1724208994796,0.27445509,59556.0,59555.0,0.009042]
[1724208995711,0.27645509,59556.0,59555.0,0.009042]
[1724208995923,0.4530393,59556.0,59555.0,0.009042]
[1724208997420,0.203,59552.0,59551.0,0.0002]
[1724208997645,0.53740638,59552.0,59551.0,0.0002]
[1724208998513,0.003,59548.0,59547.0,0.009042]
[1724208998733,0.003,59548.0,59538.0,0.009042]
[1724208998734,0.001,59540.0,59538.0,0.152642]
[1724208998972,0.16030638,59539.0,59538.0,0.152642]
[1724208999204,0.16030638,59539.0,59528.0,0.1436]
[1724208999205,0.1181,59532.0,59528.0,0.1436]
[1724208999470,0.16030638,59532.0,59528.0,0.1436]
[1724208999699,0.26030638,59532.0,59528.0,0.1436]
[1724209000796,0.25730638,59532.0,59528.0,0.1436]
[1724209001478,0.26030638,59532.0,59528.0,0.1436]
[1724209001720,0.30683702,59532.0,59528.0,0.1436]
[1724209001950,0.32311711,59532.0,59528.0,0.1436]
[1724209002179,0.26758647,59532.0,59528.0,0.1436]
[1724209002408,0.27258647,59532.0,59528.0,0.1436]
[1724209002635,0.28258647,59532.0,59528.0,0.1436]
[1724209002866,0.27758647,59532.0,59528.0,0.1436]
[1724209003823,0.27758647,59532.0,59522.0,0.00641125]
[1724209004068,0.17048647,59532.0,59531.0,0.1366]
[1724209004300,0.19435503,59532.0,59531.0,0.1366]
[1724209004525,0.29435503,59532.0,59531.0,0.1366]
[1724209005071,0.29435503,59532.0,59531.0,0.1375042]
[1724209005072,0.28435503,59532.0,59531.0,0.1375042]
[1724209005299,0.27435503,59532.0,59531.0,0.1375042]
[1724209005737,0.28335503,59532.0,59531.0,0.1375042]
[1724209006163,0.27435503,59532.0,59531.0,0.1375042]
[1724209006372,0.28335503,59532.0,59531.0,0.1375042]
[1724209007880,0.27435503,59532.0,59531.0,0.1375042]
[1724209008090,0.50435503,59532.0,59531.0,0.0011042]
[1724209008587,0.47435503,59532.0,59531.0,0.0011042]
[1724209009272,0.48035503,59532.0,59531.0,0.0011042]
[1724209009500,0.47735503,59532.0,59531.0,0.0011042]
[1724209009753,0.47435503,59532.0,59531.0,0.0011042]
[1724209010664,0.48135503,59532.0,59531.0,0.0011042]
[1724209010890,0.26430638,59532.0,59531.0,0.1425042]
[1724209011379,0.27230638,59532.0,59531.0,0.1425042]
[1724209011598,0.2321,59532.0,59531.0,0.1425042]
[1724209011816,0.28184148,59532.0,59531.0,0.1425042]
[1724209012038,0.30302563,59532.0,59531.0,0.1425042]
[1724209012255,0.30202563,59532.0,59531.0,0.1425042]
[1724209012485,0.30602563,59532.0,59531.0,0.1425042]
[1724209012708,0.29902563,59532.0,59531.0,0.1425042]
[1724209012943,0.29502563,59532.0,59531.0,0.1425042]
[1724209013155,0.29902563,59532.0,59531.0,0.1425042]
[1724209013641,0.29702563,59532.0,59531.0,0.1425042]
[1724209014543,0.29502563,59532.0,59531.0,0.1425042]
[1724209014758,0.29702563,59532.0,59531.0,0.1425042]
[1724209015015,0.29902563,59532.0,59531.0,0.1425042]
[1724209016785,0.29984763,59532.0,59531.0,0.1425042]
[1724209021014,0.004822,59532.0,59531.0,0.1425042]
[1724209021218,0.002822,59532.0,59531.0,0.1425042]
[1724209021421,0.000822,59532.0,59531.0,0.1425042]
[1724209021934,0.002822,59532.0,59531.0,0.1425042]
[1724209022472,0.001822,59532.0,59531.0,0.1425042]
[1724209022878,0.002822,59532.0,59531.0,0.1425042]
[1724209026526,0.07454776,59532.0,59531.0,0.1425042]
[1724209026970,0.05255556,59532.0,59531.0,0.1425042]
[1724209027635,0.05155556,59532.0,59531.0,0.1425042]
[1724209028307,0.05055556,59532.0,59531.0,0.1425042]
[1724209037272,0.15055556,59532.0,59531.0,0.1425042]
[1724209037497,0.05055556,59532.0,59531.0,0.1425042]
[1724209037721,0.15055556,59532.0,59531.0,0.1425042]
[1724209037942,0.16561112,59532.0,59531.0,0.1425042]
[1724209038841,0.06561112,59532.0,59531.0,0.1425042]
[1724209039103,0.05055556,59532.0,59531.0,0.1425042]
[1724209045560,0.05055556,59532.0,59531.0,0.1458633]
[1724209045780,0.05055556,59532.0,59531.0,0.1962118]
[1724209046506,0.05055556,59532.0,59531.0,0.19622488]
[1724209046687,0.05155556,59532.0,59531.0,0.19622488]
[1724209047112,0.05155556,59532.0,59531.0,0.22138605]
[1724209047322,0.05155556,59532.0,59531.0,0.59434844]
[1724209047549,0.05255556,59532.0,59531.0,0.59634844]
[1724209048183,0.05255556,59532.0,59531.0,0.22338605]
[1724209048617,0.05155556,59532.0,59531.0,0.22138605]
[1724209048869,0.05155556,59532.0,59531.0,0.22638605]
[1724209049115,0.05255556,59532.0,59531.0,0.23138605]
[1724209049364,0.05155556,59532.0,59531.0,0.599345]
[1724209049582,0.05155556,59532.0,59531.0,0.22638605]
[1724209049799,0.05155556,59532.0,59531.0,0.23538605]
[1724209049800,0.05255556,59532.0,59531.0,0.23538605]
[1724209050022,0.05255556,59532.0,59531.0,0.608345]
[1724209050240,0.05155556,59532.0,59531.0,0.603345]
[1724209050452,0.05155556,59532.0,59531.0,0.23238605]
[1724209050696,0.05255556,59532.0,59531.0,0.22902695]
[1724209051145,0.05155556,59532.0,59531.0,0.22702695]
[1724209051363,0.05255556,59532.0,59531.0,0.22902695]
[1724209051628,0.05255556,59532.0,59531.0,0.1535042]
[1724209051629,0.002822,59532.0,59531.0,0.1535042]
[1724209053665,0.05256455,59532.0,59531.0,0.1535042]
[1724209055360,0.05256455,59532.0,59531.0,0.15686334]
[1724209057184,0.05236238,59532.0,59531.0,0.15686334]
[1724209057962,0.05236238,59532.0,59531.0,0.0121042]
[1724209067339,0.05236238,59532.0,59531.0,0.1544042]
[1724209067556,0.05236238,59532.0,59531.0,0.20477811]
[1724209067787,0.05236238,59532.0,59531.0,0.1544042]
[1724209067996,0.05236238,59532.0,59531.0,0.77060234]
[1724209067997,0.00261983,59532.0,59531.0,0.77060234]
[1724209068237,0.00261983,59532.0,59531.0,0.64466755]
[1724209068883,0.00261983,59532.0,59531.0,0.52736755]
[1724209075123,0.00261983,59532.0,59531.0,0.52733241]
[1724209077715,0.1,59553.0,59535.0,0.1412]
[1724209077956,0.04972791,59552.0,59542.0,0.065]
[1724209078186,0.0604,59550.0,59543.0,0.00335831]
[1724209078424,0.04972791,59549.0,59543.0,0.00335831]
[1724209078647,0.14972791,59549.0,59543.0,0.00335831]
[1724209078887,0.04972791,59548.0,59543.0,0.00335831]
[1724209079117,0.04972791,59548.0,59542.0,0.065]
[1724209079363,0.04972791,59548.0,59543.0,0.00335843]
[1724209080515,0.04972791,59548.0,59543.0,0.00435843]
[1724209081885,0.04972791,59548.0,59543.0,0.00535843]
[1724209082115,0.0782907,59548.0,59543.0,0.002]
[1724209082346,0.18562791,59547.0,59543.0,0.002]
[1724209082564,0.2932,59548.0,59543.0,0.002]
[1724209082565,0.0755,59545.0,59543.0,0.002]
[1724209082793,0.11012791,59544.0,59543.0,0.002]
[1724209083013,0.21012791,59544.0,59543.0,0.002]
[1724209083234,0.21012791,59544.0,59543.0,0.001]
[1724209083467,0.21012791,59544.0,59535.0,0.1412]
[1724209083734,0.14972791,59543.0,59535.0,0.1412]
[1724209084160,0.04972791,59542.0,59535.0,0.1412]
[1724209086140,0.04972791,59542.0,59535.0,0.067]
[1724209086368,0.04972791,59542.0,59536.0,0.05024585]
[1724209086598,0.04972791,59541.0,59537.0,0.1393]
[1724209086814,0.04972791,59540.0,59537.0,0.1393]
[1724209087028,0.1,59546.0,59539.0,0.1393]
[1724209087249,0.04973021,59545.0,59540.0,0.14265852]
[1724209087499,0.1,59551.0,59540.0,0.14265852]
[1724209087500,0.04973021,59544.0,59540.0,0.14265852]
[1724209087715,0.04973021,59543.0,59540.0,0.14265852]
[1724209087939,0.04973021,59542.0,59540.0,0.1393]
[1724209088155,0.07556207,59548.0,59540.0,0.14265848]
[1724209088303,0.002,59542.0,59540.0,0.14265848]
[1724209088894,0.02665386,59548.0,59540.0,0.14265848]
[1724209089109,0.04971977,59547.0,59540.0,0.14165848]
[1724209089322,0.04971977,59547.0,59540.0,0.14665848]
[1724209089766,0.04971977,59547.0,59540.0,0.14165848]
[1724209090446,0.04971977,59547.0,59540.0,0.14765848]
[1724209090653,0.04971977,59547.0,59540.0,0.14165848]
[1724209091741,0.04971977,59547.0,59540.0,0.14365848]
[1724209092153,0.04971977,59547.0,59540.0,0.14565848]
[1724209092589,0.1173,59543.0,59540.0,0.14565848]
[1724209092802,0.14971977,59542.0,59540.0,0.14565848]
[1724209093011,0.1,59542.0,59540.0,0.14565848]
[1724209093449,0.1,59542.0,59540.0,0.14365848]
[1724209093877,0.1,59542.0,59540.0,0.15065848]
[1724209094572,0.1,59542.0,59540.0,0.1473]
[1724209094808,0.04972355,59541.0,59540.0,0.009]
[1724209095042,0.04972355,59541.0,59540.0,0.007]
[1724209095230,0.04972355,59541.0,59537.0,0.05025158]
[1724209095494,0.04972355,59541.0,59540.0,0.008]
[1724209096147,0.05072355,59541.0,59540.0,0.017]
[1724209096427,0.05072355,59541.0,59540.0,0.009]
[1724209096639,0.05172355,59541.0,59540.0,0.009]
[1724209096861,0.05072355,59541.0,59540.0,0.009]
[1724209097305,0.05072355,59541.0,59540.0,0.018]
[1724209097306,0.05172355,59541.0,59540.0,0.018]
[1724209097719,0.16902355,59541.0,59540.0,0.018]
[1724209097970,0.15172355,59541.0,59540.0,0.1592]
[1724209099106,0.002,59541.0,59540.0,0.16255867]
[1724209099331,0.102,59541.0,59540.0,0.16255867]
[1724209099555,0.15172948,59541.0,59540.0,0.16255867]
[1724209100000,0.15172948,59541.0,59540.0,0.1592]
[1724209100217,0.05172948,59541.0,59540.0,0.1592]
[1724209101764,0.16902948,59541.0,59540.0,0.1601042]
[1724209102196,0.26902948,59541.0,59540.0,0.1601042]
[1724209106367,0.16902948,59541.0,59540.0,0.1601042]
[1724209106584,0.05172948,59541.0,59540.0,0.1601042]
[1724209106826,0.05172948,59541.0,59540.0,0.60838083]
[1724209107267,0.05172948,59541.0,59540.0,0.60838942]
[1724209108366,0.05172948,59541.0,59540.0,0.60838709]
[1724209108590,0.05172948,59541.0,59540.0,0.1601042]
[1724209108591,0.16902948,59541.0,59540.0,0.1601042]
[1724209110767,0.16902948,59541.0,59540.0,0.21041197]
[1724209111012,0.16902948,59541.0,59540.0,0.1601042]
[1724209111229,0.16902948,59541.0,59540.0,0.21041278]
[1724209111476,0.16902948,59541.0,59540.0,0.1601042]
[1724209111710,0.16902948,59541.0,59540.0,0.23550972]
[1724209112171,0.16902948,59541.0,59540.0,0.60842515]
[1724209112396,0.16902948,59541.0,59540.0,0.23550972]
[1724209112644,0.16902948,59541.0,59540.0,0.53301927]
[1724209112883,0.16902948,59541.0,59540.0,0.60852787]
[1724209113113,0.16902948,59541.0,59540.0,0.60853975]
[1724209113565,0.16902948,59541.0,59540.0,0.63371167]
[1724209114455,0.18675443,59541.0,59540.0,0.49251167]
[1724209114699,0.32375443,59541.0,59540.0,0.46737994]
[1724209116756,0.30685148,59541.0,59540.0,0.46737994]
[1724209116999,0.30685148,59541.0,59540.0,0.09446015]
[1724209117428,0.30685148,59541.0,59540.0,0.06927967]
[1724209117911,0.30685148,59541.0,59540.0,0.0189042]
[1724209121034,0.43685148,59541.0,59540.0,0.0189042]
[1724209121257,0.50383663,59541.0,59540.0,0.0189042]
[1724209121473,0.50283663,59541.0,59540.0,0.0189042]
[1724209121916,0.50183663,59541.0,59540.0,0.0099042]
[1724209122214,0.50283663,59541.0,59540.0,0.0099042]
[1724209122420,0.50483663,59541.0,59540.0,0.0099042]
[1724209122645,0.50383663,59541.0,59540.0,0.0099042]
[1724209123060,0.50183663,59541.0,59540.0,0.0009042]
[1724209123281,0.50983663,59541.0,59540.0,0.0019042]
[1724209123642,0.50183663,59541.0,59540.0,0.0009042]
[1724209123964,0.50983663,59541.0,59540.0,0.0019042]
[1724209124344,0.52283663,59541.0,59540.0,0.0029042]
[1724209125660,0.52483663,59541.0,59540.0,0.0029042]
[1724209128766,0.2573,59532.0,59525.0,0.49229154]
[1724209128991,0.40402948,59532.0,59525.0,0.49229154]
[1724209129205,0.40402948,59532.0,59522.0,0.00641125]
[1724209129206,0.4064945,59532.0,59522.0,0.00641125]
[1724209129423,0.4074945,59532.0,59522.0,0.00641125]
[1724209130079,0.40702948,59532.0,59522.0,0.00641125]
[1724209130288,0.47393243,59532.0,59522.0,0.00641125]
[1724209131314,0.41002948,59532.0,59524.0,0.083]
[1724209131518,0.41002948,59532.0,59526.0,0.0634]
[1724209132554,0.41002948,59532.0,59524.0,0.083]
[1724209132758,0.41002948,59532.0,59522.0,0.00641125]
[1724209132759,0.41302948,59532.0,59522.0,0.00641125]
[1724209132964,0.41002948,59532.0,59522.0,0.00641125]
[1724209136813,0.41102948,59532.0,59522.0,0.00641125]
[1724209137029,0.41002948,59532.0,59522.0,0.00641125]
[1724209137242,0.47453243,59532.0,59522.0,0.00641125]
[1724209137491,0.47753243,59532.0,59522.0,0.00641125]
[1724209137923,0.47553243,59532.0,59522.0,0.00641125]
[1724209138140,0.47453243,59532.0,59522.0,0.00641125]
[1724209138779,0.47753243,59532.0,59522.0,0.00641125]
[1724209139886,0.47733029,59532.0,59522.0,0.00641125]
[1724209141205,0.0646,59525.0,59522.0,0.00641125]
[1724209141511,0.1173,59523.0,59522.0,0.00641125]
[1724209141866,0.26702948,59523.0,59522.0,0.00641125]
[1724209142569,0.26702948,59523.0,59522.0,0.01141125]
[1724209143014,0.26702948,59523.0,59522.0,0.00641125]
[1724209143015,0.34942948,59523.0,59522.0,0.00641125]
[1724209143240,0.40613893,59523.0,59522.0,0.00641125]
[1724209143452,0.40713893,59523.0,59522.0,0.01341125]
[1724209144130,0.40813893,59523.0,59522.0,0.02141125]
[1724209144378,0.40713893,59523.0,59522.0,0.01341125]
[1724209144822,0.41213893,59523.0,59522.0,0.00741125]
[1724209145267,0.41813893,59523.0,59522.0,0.00841125]
[1724209146566,0.16172948,59523.0,59522.0,0.07291125]
[1724209146782,0.17902948,59523.0,59522.0,0.07291125]
[1724209147214,0.27902948,59523.0,59522.0,0.07291125]
[1724209148594,0.2893247,59523.0,59522.0,0.07291125]
[1724209149022,0.1720247,59523.0,59522.0,0.07291125]
[1724209149250,0.32952717,59523.0,59522.0,0.07291125]
[1724209149695,0.2893247,59523.0,59522.0,0.07291125]
[1724209149918,0.2893247,59523.0,59522.0,0.07381545]
[1724209151003,0.2893247,59523.0,59522.0,0.00931545]
[1724209165460,0.27902948,59523.0,59522.0,0.00931545]
[1724209167000,0.27902948,59523.0,59522.0,0.14741545]
[1724209169115,0.16172948,59523.0,59522.0,0.14741545]
[1724209169544,0.06172948,59523.0,59522.0,0.14741545]
[1724209169758,0.16172948,59523.0,59522.0,0.14741545]
[1724209170171,0.15572948,59523.0,59522.0,0.14641545]
[1724209170589,0.15572948,59523.0,59522.0,0.14941545]
[1724209171436,0.14972948,59523.0,59522.0,0.14841545]
[1724209171662,0.14972948,59523.0,59522.0,0.15141545]
[1724209178349,0.04972948,59523.0,59522.0,0.15141545]
[1724209178573,0.14972948,59523.0,59522.0,0.15141545]
[1724209180424,0.17643243,59523.0,59522.0,0.15141545]
[1724209181329,0.14972948,59523.0,59522.0,0.15141545]
[1724209186791,0.04972948,59523.0,59522.0,0.15141545]
[1724209187007,0.14972948,59523.0,59522.0,0.15141545]
[1724209187696,0.31773148,59523.0,59522.0,0.15141545]
[1724209190152,0.21773148,59523.0,59522.0,0.15141545]
[1724209190381,0.21773148,59523.0,59522.0,0.20176949]
[1724209191323,0.21773148,59523.0,59522.0,0.20176018]
[1724209191547,0.21773148,59523.0,59522.0,0.20175864]
[1724209196036,0.21773148,59523.0,59522.0,0.2017728]
[1724209196793,0.04972948,59523.0,59522.0,0.2017728]
[1724209196992,0.1,59528.0,59522.0,0.0636728]
[1724209197196,0.0498037,59527.0,59525.0,0.0754]
[1724209197401,0.0498037,59526.0,59525.0,0.0754]
[1724209197626,0.1,59530.0,59525.0,0.1384]
[1724209197627,0.0498037,59529.0,59525.0,0.1384]
[1724209197829,0.0498037,59529.0,59526.0,0.0754]
[1724209198835,0.003,59528.0,59526.0,0.0754]
[1724209199037,0.0498037,59527.0,59526.0,0.0754]
[1724209200060,0.003,59528.0,59526.0,0.0754]
[1724209200261,0.0498037,59527.0,59526.0,0.1384]
[1724209200890,0.0498037,59528.0,59526.0,0.37635673]
[1724209201092,0.004,59529.0,59527.0,0.6120669]
[1724209201214,0.004,59529.0,59528.0,0.19209718]
[1724209201410,0.000822,59531.0,59528.0,0.00335928]
[1724209201636,0.04978909,59530.0,59529.0,0.04934117]
[1724209201867,0.04978909,59530.0,59528.0,0.04934117]
[1724209202071,0.04978909,59530.0,59529.0,0.1384]
[1724209202303,0.04978909,59530.0,59529.0,0.1374]
[1724209202714,0.04978909,59530.0,59529.0,0.1424]
[1724209204222,0.05078909,59530.0,59529.0,0.1484]
[1724209205090,0.07323874,59530.0,59529.0,0.011]
[1724209205291,0.05078909,59530.0,59529.0,0.011]
[1724209205735,0.19415411,59530.0,59529.0,0.011]
[1724209205939,0.29415411,59530.0,59529.0,0.011]
[1724209206167,0.29515411,59530.0,59529.0,0.011]
[1724209206384,0.35588172,59530.0,59529.0,0.006]
[1724209206631,0.36903426,59530.0,59529.0,0.006]
[1724209206837,0.36603426,59530.0,59529.0,0.006]
[1724209207076,0.36703426,59530.0,59529.0,0.009]
[1724209207318,0.36603426,59530.0,59529.0,0.003]
[1724209207542,0.1441,59526.0,59522.0,0.00731545]
[1724209207767,0.1173,59523.0,59522.0,0.00731545]
[1724209207989,0.16708909,59523.0,59522.0,0.00731545]
[1724209208194,0.26708909,59523.0,59522.0,0.00731545]
[1724209208406,0.14978909,59523.0,59522.0,0.00731545]
[1724209208617,0.26708909,59523.0,59522.0,0.00731545]
[1724209209038,0.26808909,59523.0,59522.0,0.00731545]
[1724209209490,0.329308,59523.0,59522.0,0.00731545]
[1724209209715,0.27008909,59523.0,59522.0,0.08651545]
[1724209209928,0.27008909,59523.0,59522.0,0.15021545]
[1724209209929,0.15278909,59523.0,59522.0,0.15021545]
[1724209210137,0.05278909,59523.0,59522.0,0.15021545]
[1724209210348,0.05278909,59523.0,59522.0,0.15357514]
[1724209210569,0.001,59523.0,59522.0,0.5232309]
[1724209210819,0.000822,59530.0,59522.0,0.62390049]
[1724209211028,0.04980033,59529.0,59527.0,0.0792]
[1724209211236,0.04980033,59529.0,59527.0,0.0782]
[1724209211449,0.04980033,59529.0,59528.0,0.0637]
[1724209211893,0.04980033,59529.0,59528.0,0.0627]
[1724209212116,0.06667476,59529.0,59528.0,0.0607]
[1724209212566,0.05080033,59529.0,59528.0,0.0607]
[1724209212789,0.05080033,59529.0,59528.0,0.0647]
[1724209213417,0.05080033,59529.0,59528.0,0.0607]
[1724209213653,0.05180033,59529.0,59528.0,0.0667]
[1724209213877,0.16810033,59529.0,59528.0,0.006]
[1724209214091,0.16910033,59529.0,59528.0,0.013]